fUSD/lending_fUSD_20250905
["ID","MTS","AMOUNT","RATE_DAILY","PERIOD"]
[383680754,1757083831940,-20554.32487244,0.00021885,2]
[383680756,1757083831951,-394.0,0.00021899,2]
[383680757,1757083831961,-168.09434585,0.000219,2]
[383680759,1757083831970,-169.52993301,0.000219,2]
[383680761,1757083831980,-162.07048703,0.000219,2]
[383680762,1757083831989,-459.15215661,0.00021973,2]
[383680764,1757083831998,-500.0,0.00021973,2]
[383680766,1757083832008,-500.0,0.00021973,2]
[383680767,1757083832016,-500.0,0.00021973,2]
[383680768,1757083832025,-500.0,0.00021973,2]
[383680769,1757083832035,-151.41,0.0002199,2]
[383680770,1757083832044,-191.84730976,0.0002199,2]
[383680771,1757083832053,-313641.14925259,0.00022,2]
[383680772,1757083832065,-2612.33745374,0.00022,2]
[383680773,1757083832075,-300.73503673,0.00022,2]
[383680774,1757083832087,-1109.1,0.00022,2]
[383680775,1757083832098,-8243.29599883,0.00022,2]
[383680806,1757083837777,-719.22428738,0.00021035,2]
[383680809,1757083837789,-36.90571262,0.00021035,2]
[383680811,1757083837799,-152.70880325,0.00021884,2]
[383680813,1757083837808,-5244.32018311,0.00022,2]
[383680815,1757083837820,-1056.28763,0.00022,2]
[383680817,1757083837831,-2591.88317731,0.00022,2]
[383680820,1757083837846,-6693.18746613,0.00022,2]
[383680822,1757083837858,-28197.76012131,0.00022,2]
[383680824,1757083837872,-1677.92940008,0.00022,2]
[383680827,1757083837887,-1113.31347329,0.00022,2]
[383680829,1757083837899,-1930.94859998,0.00022,2]
[383681014,1757083839783,-4656.26685926,0.00022,2]
[383681027,1757083839896,-1668.8805005,0.00022,2]
[383681058,1757083840186,-907.78581716,0.00022,2]
[383681344,1757083842802,-441.05302119,0.00022,2]
[383681366,1757083842922,-2151.38183,0.00022,2]
[383681367,1757083842994,-7980.0,0.00022,2]
[383681368,1757083843006,-25177.96452669,0.00022,2]
[383681543,1757083844744,-663.9660223,0.00022,2]
[383681546,1757083844756,-805597.58383621,0.00022,2]
[383681548,1757083844766,-2049.66,0.00022,7]
[383681550,1757083844775,-6012.74,0.00022,7]
[383681552,1757083844785,-152.63,0.00022064,2]
[383681554,1757083844795,-250.0,0.00022168,2]
[383681556,1757083844805,-200.0,0.00022351,2]
[383681558,1757083844815,-1000.0,0.00022521,2]
[383681560,1757083844824,-152.63,0.00022713,2]
[383681562,1757083844834,-808.0,0.00022781,2]
[383681564,1757083844844,-500.0,0.0002285,2]
[383681566,1757083844853,-500.97725384,0.0002285,2]
[383681568,1757083844862,-500.0,0.0002285,2]
[383681569,1757083844871,-420.0,0.00022913,2]
[383681571,1757083844881,-1207.0,0.00023022,2]
[383681573,1757083844890,-996.12494811,0.00023068,2]
[383681576,1757083844900,-152.63,0.00023361,2]
[383681578,1757083844910,-158.6,0.00023973,2]
[383681580,1757083844920,-152.63,0.0002401,2]
[383681582,1757083844929,-1000.0,0.00024113,2]
[383681583,1757083844939,-2205.51,0.00024414,2]
[383681585,1757083844952,-180.0,0.00024445,2]
[383681587,1757083844961,-2864.36,0.00024473,2]
[383681589,1757083844971,-339.82,0.00024592,3]
[383681591,1757083844981,-482.49,0.00024638,2]
[383681593,1757083844991,-160.0,0.00024639,7]
[383681595,1757083844999,-152.63,0.00024659,2]
[383681597,1757083845009,-500.0,0.00024672,2]
[383681599,1757083845020,-12767.98,0.000247,2]
[383681601,1757083845031,-26056.19,0.00024768,2]
[383681603,1757083845040,-844.4814,0.000248,2]
[383681605,1757083845050,-388885.546837,0.000248,3]
[383681607,1757083845060,-2049.66,0.000249,7]
[383681609,1757083845070,-6012.74,0.000249,7]
[383681611,1757083845080,-1738.43612929,0.000249,2]
[383681613,1757083845090,-409342.241711,0.000249,3]
[383681615,1757083845100,-426.0,0.00024923,2]
[383681617,1757083845110,-1779.52,0.00025,7]
[383681618,1757083845119,-276.597,0.00025057,2]
[383681619,1757083845129,-14115.2497142,0.00025147,3]
[383681620,1757083845139,-322.47239304,0.00025155,2]
[383681621,1757083845148,-60040.16,0.00025157,2]
[383681622,1757083845157,-191.79,0.000253,2]
[383681623,1757083845166,-150.0,0.00025344,2]
[383681624,1757083845176,-197.34,0.00025348,2]
[383681625,1757083845188,-200.0,0.00025525,2]
[383681626,1757083845201,-197.08065302,0.00025667,2]
[383681627,1757083845211,-501.30579348,0.00025667,2]
[383681629,1757083845222,-163.2,0.00025806,2]
[383681631,1757083845233,-482.49,0.0002587,2]
[383681633,1757083845242,-1738.43612925,0.00025929,4]
[383681635,1757083845251,-1779.52,0.00026,7]
[383681637,1757083845261,-500.0,0.000262,2]
[383681639,1757083845271,-1852.42,0.00026238,2]
[383681641,1757083845281,-511.02452897,0.000266,2]
[383681643,1757083845291,-286.55734603,0.00026633,2]
[383681645,1757083845300,-501.38730578,0.00026633,2]
[383681647,1757083845309,-5585.9645727,0.000267,7]
[383681708,1757083845826,-233.85049233,0.00021884,2]
[383681710,1757083845837,-138.88405439,0.000267,7]
[383681712,1757083845848,-287.89137291,0.000267,7]
[383681714,1757083845858,-417.23362567,0.00026733,2]
[383681741,1757083846119,-82.76637433,0.00026733,2]
[383681743,1757083846129,-287.53,0.00026737,2]
[383681745,1757083846138,-2049.66,0.000268,7]
[383681747,1757083846147,-1738.43612925,0.00026959,6]
[383681749,1757083846157,-482.49,0.00027102,2]
[383681751,1757083846166,-150.0,0.00027123,4]
[383681753,1757083846175,-150.00000001,0.00027123,4]
[383681755,1757083846187,-150.0,0.00027123,4]
[383681757,1757083846197,-150.0,0.00027123,4]
[383681759,1757083846208,-150.0,0.00027123,4]
[383681761,1757083846217,-150.0,0.00027123,4]
[383681763,1757083846227,-160.0,0.00027126,2]
[383681765,1757083846237,-516.0,0.00027137,2]
[383681767,1757083846246,-1779.52,0.000272,7]
[383681769,1757083846255,-197.34,0.00027249,2]
[383681771,1757083846266,-2934.25749641,0.0002734,2]
[383681773,1757083846278,-385.47304823,0.0002734,2]
[383681780,1757083846333,-722.0,0.0002734,2]
[383681782,1757083846344,-15433.73288701,0.0002734,2]
[383681784,1757083846353,-1000.0,0.0002734,2]
[383681786,1757083846363,-300.0,0.00027397,2]
[383681788,1757083846372,-570.74,0.00027425,30]
[383681790,1757083846382,-150001.46,0.0002744,7]
[383681792,1757083846391,-1624.89856566,0.00027447,2]
[383681795,1757083846410,-1738.43612925,0.00027988,8]
[383681797,1757083846420,-2156.0,0.00028098,2]
[383681799,1757083846430,-287.53,0.00028107,2]
[383681802,1757083846439,-16978.81,0.00028203,2]
[383681804,1757083846450,-2760.0,0.00028203,2]
[383681805,1757083846459,-482.49,0.00028333,2]
[383681807,1757083846469,-2156.0,0.00028387,2]
[383681809,1757083846479,-19475.46343156,0.00028474,2]
[383681811,1757083846489,-2156.0,0.00028677,2]
[383681813,1757083846498,-6012.74,0.000287,7]
[383681816,1757083846508,-2156.0,0.00028967,2]
[383681818,1757083846517,-771.43944205,0.00028967,2]
[383681820,1757083846528,-514.53738265,0.00028999,3]
[383681822,1757083846538,-150.0,0.00029007,2]
[383681824,1757083846547,-500.0,0.00029007,2]
[383681826,1757083846556,-150.75152373,0.00029007,2]
[383681828,1757083846565,-150.0,0.00029007,2]
[383681830,1757083846575,-280.37053649,0.00029007,2]
[383681832,1757083846584,-150.0,0.00029007,2]
[383681834,1757083846594,-150.0,0.00029007,2]
[383681836,1757083846604,-150.0,0.00029007,2]
[383681838,1757083846614,-150.0,0.00029007,2]
[383681840,1757083846623,-150.0,0.00029007,2]
[383681842,1757083846632,-150.0,0.00029007,2]
[383681844,1757083846642,-204.47279237,0.00029007,2]
[383681846,1757083846652,-150.0,0.00029007,2]
[383681848,1757083846662,-150.0,0.00029007,2]
[383681850,1757083846671,-150.0,0.00029007,2]
[383681852,1757083846683,-150.0,0.00029007,2]
[383681854,1757083846693,-150.0,0.00029007,2]
[383681856,1757083846703,-500.0,0.00029007,2]
[383681858,1757083846712,-150.0,0.00029007,2]
[383681860,1757083846722,-150.0,0.00029007,2]
[383681862,1757083846731,-150.0,0.00029007,2]
[383681864,1757083846740,-150.0,0.00029007,2]
[383681866,1757083846750,-150.0,0.00029007,2]
[383681868,1757083846763,-500.0,0.00029007,2]
[383681870,1757083846772,-150.0,0.00029007,2]
[383681872,1757083846782,-150.0,0.00029007,2]
[383681874,1757083846791,-150.0,0.00029007,2]
[383681876,1757083846801,-150.0,0.00029007,2]
[383681878,1757083846810,-150.0,0.00029007,2]
[383681880,1757083846821,-1738.43612925,0.00029017,11]
[383681882,1757083846831,-197.34,0.0002915,2]
[383681884,1757083846843,-2049.66,0.000292,7]
[383681887,1757083846853,-2156.0,0.00029256,2]
[383681889,1757083846865,-500.0,0.00029281,2]
[383681891,1757083846877,-150.0,0.00029281,2]
[383681893,1757083846887,-150.0,0.00029281,2]
[383681895,1757083846898,-150.0,0.00029281,2]
[383681897,1757083846908,-150.0,0.00029281,2]
[383681899,1757083846918,-150.0,0.00029281,2]
[383681901,1757083846928,-150.0,0.00029281,2]
[383681903,1757083846939,-150.0,0.00029281,2]
[383681905,1757083846950,-150.0,0.00029281,2]
[383681907,1757083846966,-150.0,0.00029281,2]
[383681909,1757083846977,-500.0,0.00029281,2]
[383681911,1757083846988,-150.0,0.00029281,2]
[383681913,1757083846998,-150.0,0.00029281,2]
[383681915,1757083847008,-150.0,0.00029281,2]
[383681917,1757083847017,-150.0,0.00029281,2]
[383681919,1757083847027,-150.0,0.00029281,2]
[383681921,1757083847037,-150.0,0.00029281,2]
[383681923,1757083847047,-150.0,0.00029281,2]
[383681925,1757083847056,-500.0,0.000293,5]
[383681927,1757083847066,-162.34064184,0.000293,5]
[383681929,1757083847075,-765.25176709,0.00029446,2]
[383683424,1757083881010,1500.0,0.00030137,120]
[383683426,1757084192318,1500.0,0.0002499,120]
[383683427,1757084246491,-166.94,0.00021571,2]
[383683438,1757084401511,170.25,0.00025247,120]
[383683444,1757084654387,161.66,0.00012712,2]
[383683445,1757084654610,161.66,0.00016949,2]
[383683446,1757084723415,160.61,0.00013699,2]
[383683447,1757084856544,-155.31233354,0.0002108,2]
[383683448,1757084885186,-49.81232646,0.0002108,2]
[383683449,1757084885210,-102.18767354,0.00021133,2]
[383683450,1757084887416,-171.80693099,0.00021133,2]
[383683451,1757084889590,-26.00539547,0.00021133,2]
[383683452,1757084889627,-180.55591654,0.00021133,2]
[383683453,1757084893023,-69.44408346,0.00021133,2]
[383683456,1757085004659,-221.64686111,0.00021117,2]
[383683480,1757085031963,-140.91513889,0.00021117,2]
[383683482,1757085031973,-161.66,0.00021186,2]
[383683483,1757085031983,-151.0,0.0002168,2]
[383683484,1757085031993,-500.0,0.0002168,2]
[383683485,1757085032003,-500.0,0.00021896,2]
[383683486,1757085032012,-634.96044669,0.00021896,2]
[383683487,1757085032021,-300.0,0.00021898,2]
[383683488,1757085032031,-1200.0,0.00021898,2]
[383683489,1757085032040,-3447.32396807,0.00021899,10]
[383683490,1757085032052,-2214.2,0.00021899,10]
[383683491,1757085032064,-1838.47603193,0.00021899,10]
[383683492,1757085032074,-1000.0,0.00022,2]
[383683493,1757085032084,-156.587,0.00022228,2]
[383683494,1757085032094,-180.86757867,0.00022776,2]
[383683495,1757085032104,-3079.45514282,0.00022931,2]
[383683496,1757085032114,-1000.0,0.00023,2]
[383683497,1757085032123,-195.0,0.00023188,2]
[383683498,1757085032132,-150.0,0.00023188,4]
[383683499,1757085032142,-300.0,0.00023188,2]
[383683500,1757085032151,-300.0,0.00023188,2]
[383683501,1757085032162,-250.0,0.00023188,2]
[383683502,1757085032171,-500.0,0.00023188,2]
[383683503,1757085032181,-1250.0,0.00023279,2]
[383683504,1757085032190,-250.0,0.00023305,2]
[383683505,1757085032200,-250.0,0.00023305,2]
[383683507,1757085032209,-420.0,0.00023798,2]
[383683508,1757085032219,-1567.0,0.0002391,2]
[383683509,1757085032230,-1000.0,0.00024,2]
[383683510,1757085032240,-932.08331744,0.00024567,3]
[383683512,1757085032250,-288.46465312,0.0002458,2]
[383683513,1757085032259,-500.0,0.00024654,2]
[383683514,1757085032270,-1250.0,0.000248,2]
[383683516,1757085032279,-3919.39,0.00024871,2]
[383683518,1757085032290,-2045.29987247,0.000249,2]
[383683520,1757085032300,-160.61,0.00024907,2]
[383683522,1757085032309,-150.0,0.00025,2]
[383683524,1757085032319,-1955.59,0.00025,7]
[383683526,1757085032329,-1000.0,0.00025,2]
[383683528,1757085032338,-500.0,0.00025045,2]
[383683530,1757085032348,-151.0,0.00025045,2]
[383683532,1757085032357,-600.0,0.00025045,2]
[383683534,1757085032367,-151.0,0.00025045,2]
[383683536,1757085032377,-151.0,0.00025045,2]
[383683538,1757085032387,-222.4738,0.00025045,2]
[383683540,1757085032396,-151.0,0.00025045,2]
[383683542,1757085032406,-200.0,0.00025045,2]
[383683544,1757085032416,-600.0,0.00025045,2]
[383683546,1757085032425,-699.32598667,0.00025045,2]
[383683548,1757085032434,-210.78336828,0.00025045,2]
[383683550,1757085032443,-500.0,0.00025045,2]
[383683552,1757085032453,-500.0,0.00025045,2]
[383683554,1757085032463,-500.0,0.00025045,2]
[383683557,1757085032472,-500.0,0.00025045,2]
[383683559,1757085032483,-321.93362798,0.00025045,2]
[383683560,1757085032493,-1764.70932247,0.00025063,2]
[383683562,1757085032503,-500.0,0.000251,2]
[383683564,1757085032514,-500.0,0.00025155,2]
[383683566,1757085032524,-3010.69135387,0.0002519,2]
[383683568,1757085032533,-500.0,0.0002521,2]
[383683570,1757085032542,-200.0,0.00025233,2]
[383683572,1757085032552,-1329.59,0.00025263,2]
[383683574,1757085032561,-500.0,0.00025265,2]
[383683577,1757085032571,-1852.42,0.00025281,2]
[383683579,1757085032580,-231.67,0.000253,2]
[383683581,1757085032591,-378.06,0.00025306,2]
[383683583,1757085032600,-500.0,0.0002532,2]
[383683585,1757085032610,-15458.21,0.00025338,2]
[383683587,1757085032619,-150.23,0.00025347,2]
[383683589,1757085032629,-467.93,0.00025348,2]
[383683591,1757085032639,-1343.01449476,0.00025372,2]
[383683593,1757085032649,-175.13,0.00025372,2]
[383683595,1757085032659,-2751.0,0.00025372,2]
[383683597,1757085032669,-10454.1,0.00025401,2]
[383683599,1757085032678,-160.0,0.00025405,7]
[383683601,1757085032688,-157.88,0.00025417,2]
[383683603,1757085032698,-191.03,0.00025417,2]
[383683605,1757085032707,-161.66,0.00025424,2]
[383683607,1757085032716,-8624.86585608,0.00025515,2]
[383683609,1757085032728,-500.0,0.0002555,2]
[383683611,1757085032737,-500.0,0.0002555,2]
[383683613,1757085032746,-179.9,0.00025558,2]
[383683615,1757085032756,-500.0,0.00025591,2]
[383683617,1757085032765,-600.0,0.00025593,2]
[383683619,1757085032775,-200.0,0.00025593,2]
[383683621,1757085032784,-3238.26278847,0.000256,2]
[383683623,1757085032794,-501.77977908,0.00025624,2]
[383683625,1757085032803,-500.0,0.00025624,2]
[383683627,1757085032812,-500.0,0.00025624,2]
[383683629,1757085032822,-176.14694376,0.00025624,2]
[383683631,1757085032832,-500.0,0.00025624,2]
[383683633,1757085032841,-500.8496957,0.00025624,2]
[383683635,1757085032851,-500.0,0.00025624,2]
[383683637,1757085032862,-508.19736573,0.00025656,2]
[383683639,1757085032872,-500.0,0.00025656,2]
[383683641,1757085032881,-388.98570157,0.00025656,2]
[383683643,1757085032891,-500.0,0.00025656,2]
[383683645,1757085032901,-500.0,0.00025656,2]
[383683647,1757085032911,-400.9176573,0.00025656,2]
[383683649,1757085032920,-500.0,0.00025656,2]
[383683651,1757085032929,-500.0,0.00025656,2]
[383683653,1757085032940,-12975.39,0.00025687,2]
[383683655,1757085032949,-500.0,0.00025775,2]
[383683657,1757085032958,-500.0,0.00025775,2]
[383683659,1757085032968,-166.68,0.00025779,2]
[383683661,1757085032977,-168.81034061,0.00025823,2]
[383683663,1757085032987,-1899.6602,0.00025863,10]
[383683665,1757085032997,-587.0,0.00025864,2]
[383683667,1757085033006,-5000.0,0.00025906,2]
[383683669,1757085033016,-2045.2998723,0.00025929,4]
[383683671,1757085033026,-1152.0272868,0.0002597,2]
[383683673,1757085033036,-1955.59,0.00026,7]
[383683675,1757085033047,-1000.0,0.00026,2]
[383683678,1757085033057,-164.7719561,0.00026139,2]
[383683679,1757085033067,-600.0,0.00026141,2]
[383683682,1757085033077,-200.0,0.00026141,2]
[383683684,1757085033087,-500.0,0.00026171,2]
[383683686,1757085033097,-627.29393232,0.00026171,2]
[383683687,1757085033106,-500.0,0.00026171,2]
[383683689,1757085033116,-502.31712361,0.00026204,2]
[383683691,1757085033125,-1000.0,0.00026204,2]
[383683693,1757085033134,-500.0,0.00026204,2]
[383683695,1757085033144,-183.37300553,0.00026204,2]
[383683698,1757085033154,-251.85783872,0.00026204,2]
[383683700,1757085033163,-500.0,0.00026323,2]
[383683701,1757085033173,-150.35590088,0.00026588,2]
[383683704,1757085033183,-4509.22,0.00026591,2]
[383683706,1757085033193,-11307.97,0.00026591,2]
[383683707,1757085033202,-191.03,0.00026688,2]
[383683710,1757085033212,-342.04950656,0.00026689,2]
[383683712,1757085033221,-1500.0,0.00026751,2]
[383683713,1757085033232,-2045.2998723,0.00026959,6]
[383683716,1757085033243,-1000.0,0.00027,2]
[383683717,1757085033253,-150.0,0.00027099,4]
[383683719,1757085033263,-150.0,0.00027099,4]
[383683721,1757085033273,-150.0,0.00027099,4]
[383683723,1757085033284,-150.0,0.00027099,4]
[383683726,1757085033294,-150.0,0.00027099,4]
[383683728,1757085033304,-150.0,0.00027099,4]
[383683730,1757085033314,-279.75235123,0.00027099,4]
[383683732,1757085033324,-150.0,0.00027099,4]
[383683734,1757085033334,-150.0,0.00027099,4]
[383683736,1757085033343,-150.0,0.00027099,4]
[383683738,1757085033353,-2000.0,0.000271,2]
[383683740,1757085033362,-187.3205,0.000271,2]
[383683742,1757085033372,-3276.09866526,0.00027101,2]
[383683744,1757085033382,-516.0,0.00027137,2]
[383683746,1757085033392,-160.0,0.00027138,2]
[383683748,1757085033403,-160.0,0.00027138,2]
[383683750,1757085033412,-212.63008182,0.00027138,2]
[383683752,1757085033422,-514.736181,0.00027138,2]
[383683754,1757085033432,-160.0,0.00027138,2]
[383683756,1757085033442,-1955.59,0.000272,7]
[383683758,1757085033452,-653.47,0.00027425,30]
[383683760,1757085033461,-191.03,0.00027959,2]
[383683762,1757085033472,-2045.2998723,0.00027988,8]
[383683764,1757085033483,-1214.97544841,0.00027999,7]
[383683766,1757085033493,-1000.0,0.00028,2]
[383683768,1757085033504,-2029.0,0.00028098,2]
[383683769,1757085033515,-445.0,0.00028108,2]
[383683770,1757085033524,-700.0,0.0002817,2]
[383683771,1757085033533,-17450.88737373,0.00028287,2]
[383683772,1757085033542,-2029.0,0.00028387,2]
[383683773,1757085033552,-627.33,0.00028667,2]
[383683774,1757085033561,-2029.0,0.00028677,2]
[383683775,1757085033571,-739.6912292,0.00028967,2]
[383683776,1757085033590,-294.46137287,0.00028967,2]
[383683777,1757085033602,-994.84739793,0.00028967,2]
[383683778,1757085033612,-707.82952315,0.00028967,2]
[383683779,1757085033622,-841.61885968,0.00028974,2]
[383683780,1757085033632,-1000.0,0.00029,2]
[383683782,1757085033642,-1561.03581924,0.00029017,11]
[383683784,1757085033655,-300.13000579,0.00029017,11]
[383683790,1757085033708,-184.13404727,0.00029017,11]
[383683792,1757085033718,-668.67136341,0.0002906,2]
[383683795,1757085033730,-1008.11000046,0.0002906,2]
[383683797,1757085033742,-823.21863613,0.0002906,2]
[383683799,1757085033752,-165.20338182,0.00029063,15]
[383683801,1757085033762,-10137.25989942,0.00029063,2]
[383683803,1757085033773,-5091.69057636,0.00029063,2]
[383683805,1757085033783,-1000.0,0.00029063,2]
[383683807,1757085033793,-2968.9404125,0.000291,7]
[383683809,1757085033803,-160.0,0.000291,7]
[383683811,1757085033813,-627.33,0.00029143,2]
[383683813,1757085033823,-627.33,0.00029143,2]
[383683815,1757085033832,-627.33,0.0002915,2]
[383683817,1757085033842,-627.33,0.0002915,2]
[383683819,1757085033852,-27141.14294583,0.00029153,3]
[383683821,1757085033864,-1277.00999986,0.00029153,3]
[383683824,1757085033876,-424.03203778,0.00029153,3]
[383683826,1757085033889,-55835.42996673,0.00029153,3]
[383683828,1757085033899,-160.0,0.00029153,3]
[383683830,1757085033909,-6387.54324662,0.0002916,2]
[383683832,1757085033920,-7507.25900492,0.0002916,2]
[383683834,1757085033932,-400.71691331,0.0002916,2]
[383683836,1757085033943,-9016.40321654,0.0002916,2]
[383684245,1757085038017,-175.5628299,0.00023909,2]
[383684247,1757085038027,-263.12763461,0.00023909,2]
[383684249,1757085038037,-547.56250159,0.00023909,2]
[383684251,1757085038046,-221.9470339,0.0002429,7]
[383684253,1757085038058,-152.55977829,0.0002429,7]
[383684255,1757085038068,-187.2534061,0.000257,2]
[383684257,1757085038077,-14730.8931429,0.0002916,2]
[383684259,1757085038088,-3180.8655,0.0002916,2]
[383684271,1757085038187,-26040.37678,0.0002916,2]
[383684432,1757085039872,-1556.06075128,0.0002916,2]
[383684439,1757085039913,-7640.7858747,0.0002916,2]
[383684446,1757085039968,-721.81916233,0.0002916,2]
[383684452,1757085040022,-651.03,0.0002916,2]
[383684454,1757085040034,-28027.9804229,0.0002916,2]
[383684468,1757085040161,-2606.59472423,0.0002916,2]
[383684476,1757085040246,-3091.11846531,0.0002916,2]
[383684478,1757085040255,-4111.06637245,0.00029163,2]
[383684480,1757085040267,-8189.33384375,0.00029163,2]
[383684482,1757085040277,-2494.1911977,0.00029163,2]
[383684484,1757085040296,-394.58695855,0.00029163,2]
[383684487,1757085040317,-585.12,0.00029163,2]
[383684934,1757085044828,-184.17,0.00026129,2]
[383684936,1757085044838,-73746.86436805,0.00029163,2]
[383684938,1757085044849,-12078.54043184,0.00029163,2]
[383684942,1757085044880,-500.0,0.00029163,2]
[383684948,1757085044930,-256.82562837,0.00029163,2]
[383684984,1757085045267,-9200.0,0.00029163,2]
[383685058,1757085046250,-438.91966112,0.00029163,2]
[383685061,1757085046269,-4673.12854431,0.00029163,2]
[383685065,1757085046303,-322.20372218,0.00029163,2]
[383685070,1757085046335,-4490.71617599,0.00029163,2]
[383685071,1757085046347,-10416.42000021,0.00029163,2]
[383685072,1757085046391,-3316.99745903,0.00029163,2]
[383685164,1757085066261,462.387,0.00026152,120]
[383685165,1757085152522,-152.0,0.00021086,2]
[383685166,1757085155450,-31.6723,0.00021086,2]
[383685167,1757085303192,3359.895,0.000202,60]
[383685168,1757085381350,505.54,0.00030137,120]
[383685169,1757085394821,379.0,0.0003,120]
[383685170,1757085412170,180.0,0.00028417,120]
[383685171,1757085418498,300.0,0.0003,120]
[383685172,1757085496211,-349.94076901,0.00021,2]
[383685173,1757085497960,-24.10713099,0.00021,2]
[383685174,1757085552173,381.613,0.00026216,120]
[383685175,1757085572950,158.12,0.00014116,2]
[383685176,1757085573543,-158.12,0.00018821,2]
[383685180,1757085676219,-313.91,0.00021086,7]
[383685181,1757085677929,-218.699,0.00021086,7]
[383685182,1757085736703,-263.72439218,0.00021,7]
[383685183,1757085741903,-194.78974671,0.00021,7]
[383685185,1757085910243,-165.22,0.0002,2]
[383685186,1757085911501,2616.74030358,0.000154,2]
[383685187,1757085913776,-304.13,0.0002,2]
[383685188,1757085920861,648.20876371,9e-05,2]
[383685189,1757085937869,7023.56412538,9e-05,2]
[383685190,1757085961956,160.61,0.00013699,2]
[383685193,1757085992029,-288.056561,0.000198,2]
[383685195,1757086057865,398472.41903817,0.00018,2]
[383685232,1757086087021,8242.98582795,0.000301,120]
[383685253,1757086088483,-165.22,0.00019727,2]
[383685254,1757086088508,-84.78,0.000198,2]
[383685255,1757086091112,-165.22,0.000198,2]
[383685256,1757086093701,10133.79514077,0.0001439,2]
[383685257,1757086096650,630.80428135,0.000135,2]
[383685258,1757086103923,1899.33617434,0.0001,2]
[383685259,1757086105860,189.91890515,7.888e-05,2]
[383685260,1757086112575,220.15757377,0.0001,2]
[383685261,1757086115969,2689.31467296,0.0001,2]
[383685262,1757086119178,498.6966884,0.000154,2]
[383685263,1757086122876,396.32975497,0.00010136,2]
[383685264,1757086126512,16986.17481044,0.0001,2]
[383685272,1757086232230,-238.0,0.00019872,2]
[383685273,1757086232240,-500.0,0.00019872,2]
[383685274,1757086232249,-1200.0,0.00019872,2]
[383685275,1757086232258,-287.6424,0.00019872,2]
[383685276,1757086232295,-562.3576,0.00019872,2]
[383685277,1757086232305,-1545.43105369,0.00019873,2]
[383685278,1757086232317,-300.02948666,0.00019873,2]
[383685279,1757086232475,-14989.96548184,0.00019873,2]
[383685280,1757086232485,-17649.53003944,0.00019873,2]
[383685282,1757086232495,-1148.96723499,0.00019899,2]
[383685284,1757086232504,-22998.35738484,0.000199,2]
[383685285,1757086232516,-41839.54663952,0.000199,2]
[383685286,1757086232528,-2339.61040338,0.000199,2]
[383685302,1757086238082,-620.16651491,0.00019872,2]
[383685303,1757086238092,-231.1312545,0.00019872,2]
[383685304,1757086238103,-2234.26321336,0.000199,2]
[383685305,1757086238115,-174093.32310022,0.000199,2]
[383685306,1757086238127,-451.0506,0.000199,2]
[383685307,1757086238139,-1135.71972218,0.000199,2]
[383685308,1757086238282,-2895.37411698,0.000199,2]
[383685309,1757086238293,-145011.02669156,0.000199,2]
[383685310,1757086238304,-173.0775475,0.00019973,2]
[383685311,1757086238313,-501.19452525,0.00019973,2]
[383685312,1757086238323,-500.0,0.00019973,2]
[383685313,1757086238332,-501.86174439,0.00019973,2]
[383685314,1757086238342,-92830.35273288,0.0002,2]
[383685315,1757086238358,-41452.92332803,0.0002,2]
[383685316,1757086238369,-82897.81819368,0.0002,2]
[383685317,1757086238380,-417.44978626,0.000205,2]
[383685318,1757086238390,-293.98785229,0.00020521,2]
[383685319,1757086238400,-250.0,0.00020885,2]